Cogmind - Beta 11 @@@ ROGUE MODE // 2022.04.19 @ 20:52:44 Player: aperiodic Result: Destroyed by G-47 Trooper with Particle Gun Performance ------------- Evolutions (2) 1000 Regions Visited (7) 1400 Robots Destroyed (117) 585 Value Destroyed (2700) 2700 Prototype IDs (39) 780 Alien Tech Used (0) 0 Bonus (541) 541 TOTAL SCORE: 7006 Bonus ------- High Alert Combat Kills 192 Follower Combat Kills 49 Aligned with FarCom 300 Cogmind --------- Core Integrity 0/550 Matter 300/300 Energy 100/100 System Corruption 7% Temperature Cool (9) Movement Rolling (160) Ox4 Location -8/Materials Parts ------- > --- POWER (1) -------- (None) > --- PROPULSION (3) --- Compact Wheel > --- UTILITY (4) ------ Huge Storage Unit Hacking Suite Hacking Suite System Shield > --- WEAPON (3) ------- (None) > --- INVENTORY (25) --- Cooled Antimatter Reactor High-capacity Matter Pod (200) Experimental Sensor Array Experimental Targeting Computer Experimental Core Analyzer Advanced Weapon Cycler Advanced Transmission Jammer Improved Cloaking Device Hardened Medium Armor Plating Layered Light Armor Plating Hacking Suite Peak State ------------ > --- POWER ------------ Cooled Antimatter Reactor > --- PROPULSION ------- Compact Wheel Combat Antigrav System Improved Flight Unit > --- UTILITY ---------- Large Storage Unit Experimental Sensor Array Hardened Medium Armor Plating Hacking Suite > --- WEAPON ----------- Advanced Beam Cannon Advanced Beam Cannon Gauss Rifle > --- INVENTORY -------- Heavy Deuterium Engine High-capacity Matter Pod Experimental Targeting Computer Experimental Core Analyzer Advanced Weapon Cycler Advanced Transmission Jammer Improved Cloaking Device Improved Light Armor Plating Improved Light Armor Plating Hacking Suite Hacking Suite Hacking Suite Advanced Beam Cannon Rocket Launcher Makeshift Axe [Rating: 53] Favorites ----------- Power Cooled Ion Engine Engine Cooled Ion Engine Power Core Light Nuclear Core Reactor Cooled Antimatter Reactor Propulsion Armored Treads Treads Armored Treads Leg Titanium Leg Wheel Wheel Hover Unit Combat Antigrav System Flight Unit Improved Flight Unit Utility Large Storage Unit Device Cooling System Storage Large Storage Unit Processor Improved System Guard Hackware Hacking Suite Protection Hardened Medium Armor Plating Weapon Improved Assault Rifle Energy Gun Improved Medium Laser Energy Cannon Advanced Beam Cannon Ballistic Gun Improved Assault Rifle Ballistic Cannon Light Cannon Launcher Grenade Launcher Special Weapon Mining Laser Slashing Weapon Makeshift Axe Build | -11 -10 -10 -9 -9 -9 -8 -8 ------- Run | Scr Mat Min Mat Min Exi Min Mat Slots Evolved 4 | . . . 2 . . . 2 Power . | . . . . . . . . Propulsion 1 | . . . . . . . 1 Utility 2 | . . . 1 . . . 1 Weapon 1 | . . . 1 . . . . Parts Attached 137 | 8 6 6 30 4 16 8 59 Power 16 | 1 . . 3 . 2 2 8 Engine 12 | 1 . . 3 . 2 1 5 Core 1 | . . . . . . . 1 Reactor 3 | . . . . . . 1 2 Propulsion 28 | 2 2 . 7 . . 2 15 Treads 13 | . 2 . 7 . . 2 2 Leg 3 | . . . . . . . 3 Wheel 9 | 2 . . . . . . 7 Hover 2 | . . . . . . . 2 Flight 1 | . . . . . . . 1 Utility 39 | 2 1 2 7 3 6 2 16 Device 14 | 1 . 2 2 . 1 2 6 Storage 5 | 1 1 . . 2 . . 1 Processor 3 | . . . . . 1 . 2 Hackware 4 | . . . . . . . 4 Protection 13 | . . . 5 1 4 . 3 Artifact . | . . . . . . . . Weapon 54 | 3 3 4 13 1 8 2 20 Energy Gun 9 | 1 . . 2 1 . . 5 Energy Cannon 7 | . 1 . 2 . 1 . 3 Ballistic Gun 27 | 2 1 2 8 . 6 1 7 Ballistic Cannon 2 | . . . . . . . 2 Launcher 4 | . . 2 . . 1 . 1 Special Weapon 1 | . 1 . . . . . . Impact Weapon . | . . . . . . . . Slashing Weapon 4 | . . . 1 . . 1 2 Piercing Weapon . | . . . . . . . . Special Melee Weapon . | . . . . . . . . Unidentified Prototypes 12 | . . 1 4 . 2 1 4 Parts Lost 26 | . . . 1 . 1 7 17 Power 4 | . . . 1 . . 1 2 Propulsion 8 | . . . . . . 1 7 Utility 3 | . . . . . 1 2 . Weapon 11 | . . . . . . 3 8 Highest Loss Streak 9 | . . . 1 . 1 6 9 To Critical Strikes . | . . . . . . . . Average Slot Usage (%) 95 | . 100 100 99 100 94 80 94 Engine 9 | . 14 14 10 11 10 2 5 Reactor 1 | . . . . . . 8 2 Treads 18 | . 10 28 22 22 22 21 4 Wheel 3 | . 17 . . . . . 11 Device 6 | . 14 14 6 11 2 13 4 Storage 10 | . 14 14 11 11 11 11 9 Processor 1 | . . . . . 3 . . Hackware 3 | . . . . . . . 16 Protection 9 | . . . 15 11 13 2 5 Energy Gun 5 | . . . 1 22 4 . 6 Energy Cannon 5 | . 4 14 8 11 2 . 5 Ballistic Gun 15 | . 21 10 21 . 22 11 9 Ballistic Cannon 1 | . . . . . . . 4 Naked Turns . | . . . . . . . . Heaviest Build 99 | 12 30 31 54 48 60 53 99 Greatest Support 60 | 26 40 40 43 40 40 40 60 Greatest Overweight (x) 27 | . 1 . 1 1 1 1 27 Average Overweight (x) . | . . . . . . . 1 Largest Inventory Capacity 25 | 8 15 15 15 25 15 15 25 Average Capacity 15 | 7 10 15 15 15 15 15 16 Most Carried 15 | 5 14 15 15 15 15 15 15 Average Carried 13 | 3 8 14 14 15 11 12 14 Final Capacity 25 | 8 15 15 15 15 15 15 25 Final Carried 15 | 5 14 15 15 15 15 12 11 Class Distribution -------------------- 57% | Tank 28% | Mutant 6% | Hacker-Gunner Dominant Class ---------------- Mutant | -10/Materials Mutant | -10/Mines Tank | -9/Materials Tank | -9/Mines Tank | -9/Exiles Mutant | -8/Mines Tank | -8/Materials Resources | -11 -10 -10 -9 -9 -9 -8 -8 ----------- Run | Scr Mat Min Mat Min Exi Min Mat Matter Collected 3697 | 370 . 249 529 26 551 236 1736 Remotely . | . . . . . . . . Salvage Created 4485 | 160 21 50 1038 . 400 287 2529 Parts 281 | 7 2 12 63 . 55 15 127 Haulers Intercepted 7 | . . . 2 . . . 5 Recyclers Shooed 2 | . 1 . . . . . 1 Parts Field Recycled . | . . . . . . . . Retrieved Matter . | . . . . . . . . Parts Self-Destructed . | . . . . . . . . Prevented . | . . . . . . . . Kills | -11 -10 -10 -9 -9 -9 -8 -8 ------- Run | Scr Mat Min Mat Min Exi Min Mat Combat Hostiles Destroyed 71 | . . 7 17 . 6 3 38 Melee 1 | . . . . . . 1 . Guns 45 | . . . 10 . 3 2 30 Cannons 15 | . . 3 7 . . . 5 AOE 8 | . . 4 . . 3 . 1 Classes Destroyed 18 | 2 1 3 4 . 3 1 4 Worker 12 | . . . 3 . . 3 6 Builder 1 | . . . . . . . 1 Tunneler 5 | 3 . 1 . . . . 1 Hauler 7 | . . . 2 . . . 5 Recycler 9 | 1 . . 2 . . 1 5 Mechanic 1 | . . . . . . . 1 Operator 1 | . . . . . . . 1 Turret 1 | . . . . . 1 . . Watcher 5 | . 1 . 1 . . . 3 Swarmer 17 | . . 4 3 . . 1 9 Grunt 27 | . . 2 8 . . . 17 Duelist 2 | . . . 1 . . . 1 Sentry 13 | . . . 5 . . . 8 Demolisher 1 | . . 1 . . . . . Hunter 3 | . . . . . . 1 2 Heavy 1 | . . . . . . . 1 Zionite 7 | . . . . . 7 . . Assembled 5 | . . . . . 5 . . Best Kill Streak 7 | 2 1 4 5 . 5 2 7 Combat Bots Only 5 | . . 3 4 . 5 1 5 Max Kills in Single Turn 3 | 1 1 3 2 . 1 1 2 Gunslinging . | . . . . . . . . Exploded 2 | . . 2 . . 1 . 1 Melee 1 | . . . . . . 1 . Uniques/NPCs Destroyed 5 | . . . . . 4 1 . 8R-AWN (-9/Exiles) EX-BIN (-9/Exiles) EX-DEC (-9/Exiles) EX-HEX (-9/Exiles) ME-RLN (-8/Mines) Combat | -11 -10 -10 -9 -9 -9 -8 -8 -------- Run | Scr Mat Min Mat Min Exi Min Mat Damage Taken 5759 | . . 366 582 . 721 1365 2725 Core 937 | . . 135 19 . 72 161 550 Absorbed by Shields . | . . . . . . . . Regen/Repaired (Parts) 163 | . . . . . . . 163 Core Remaining (%) 61 | 100 . 46 . . . 37 . Volleys Fired 292 | 23 13 12 47 . 49 18 130 Largest 3 | 2 2 2 3 . 3 3 3 Hottest 164 | 60 100 88 156 . 69 69 164 Shots Fired 737 | 46 23 15 133 . 140 41 339 Gun 592 | 46 20 3 106 . 134 41 242 Cannon 125 | . . 4 27 . 1 . 93 Launcher 17 | . . 8 . . 5 . 4 Special 3 | . 3 . . . . . . Kinetic 561 | 44 20 3 102 . 134 41 217 Thermal 93 | . 3 4 31 . . . 55 Explosive 17 | . . 8 . . 5 . 4 Electromagnetic 66 | 2 . . . . 1 . 63 Robot Hit Streak 22 | 6 4 11 11 . 22 8 20 Robot Miss Streak 6 | 2 2 1 2 . 4 3 6 Penetration Max 1 | . . . . . . . 1 Secondary Targets 2 | . . . . . . . 2 Max Gunslinging Chain 1 | . . . . . . . 1 Autonomous 27 | . . . . . 27 . . Shots Hit Robots 482 | 25 12 11 84 . 95 53 202 Core Hits 201 | 7 1 8 38 . 33 10 104 Critical Kills 2 | . . . 1 . . . 1 Critical Parts Destroyed 1 | . . . . . . . 1 Critical Strikes 4 | . . . 1 . . 1 2 Meltdown 1 | . . . . . . . 1 Destroy 2 | . . . 1 . . . 1 Sever 1 | . . . . . . 1 . Melee Attacks 43 | . . . 2 . . 39 2 Impact . | . . . . . . . . Slashing 43 | . . . 2 . . 39 2 Piercing . | . . . . . . . . Sneak Attacks 6 | . . . 2 . . 4 . Combat Hostiles . | . . . . . . . . Follow-up Attacks . | . . . . . . . . Damage Inflicted 10641 | 306 126 557 1416 15 2088 1305 4828 Guns 6299 | 269 126 10 844 . 1739 354 2957 Cannons 1638 | . . 85 442 . . . 1111 Explosions 1514 | 37 . 462 . . 349 . 666 Melee 1164 | . . . 130 . . 951 83 Ramming 26 | . . . . 15 . . 11 Kinetic 5573 | 242 126 10 775 . 1739 354 2327 Thermal 1682 | 37 . 85 511 . . . 1049 Explosive 1145 | . . 462 . . 244 . 439 Electromagnetic 1051 | 27 . . . . 105 . 919 Impact . | . . . . . . . . Slashing 1164 | . . . 130 . . 951 83 Piercing . | . . . . . . . . Highest Corruption 15 | . . . . . 3 15 7 Average Corruption 7 | . . . . . 3 13 6 Corruption Purged . | . . . . . . . . Corruption Blocked . | . . . . . . . . Effects 78 | . . . . . 19 31 28 Message Errors 15 | . . . . . 5 3 7 Matter Fused 25 | . . . . . 6 10 9 Heat Flow Errors 9 | . . . . . 3 2 4 Energy Discharges 7 | . . . . . . 5 2 Parts Rejected 1 | . . . . . . 1 . Data Loss (minor) 8 | . . . . . 1 6 1 Data Loss (major) 3 | . . . . . 2 1 . Misfires 4 | . . . . . 1 1 2 Alerts 3 | . . . . . 1 1 1 Weapon Failures 3 | . . . . . . 1 2 Overload Shots . | . . . . . . . . Overflow Damage 224 | . . 15 3 . 3 143 60 Projectiles 40 | . . . 3 . . . 37 Explosions 41 | . . 15 . . 3 . 23 Melee 143 | . . . . . . 143 . Knockbacks 2 | . . . . . . . 2 Impact . | . . . . . . . . Kinetic 2 | . . . . . . . 2 Secondary . | . . . . . . . . Self-Inflicted Damage 200 | . . 71 . . 18 . 111 Shots 7 | . . 2 . . 1 . 4 Rammed 5 | . . . . 3 . . 2 Targets Rammed 5 | . . . . 3 . . 2 Kicked . | . . . . . . . . Crushed . | . . . . . . . . Highest Temperature 424 | 20 40 54 367 . 360 261 424 Average Temperature 104 | 20 19 24 121 . 97 84 106 Received Heat Transfer 1092 | . . 36 201 . 60 . 795 Effects 13 | . . . 5 . 1 . 7 Shutdowns 1 | . . . . . . . 1 Energy Bleed 3 | . . . . . . . 3 Interference 7 | . . . 5 . . . 2 Damage (minor) 2 | . . . . . 1 . 1 Siege Activations . | . . . . . . . . Robots Corrupted 2 | . . . . . 1 . 1 Combat Hostiles 1 | . . . . . . . 1 Parts Fried 3 | . . . . . . . 3 Impact Corruptions . | . . . . . . . . Robots Melted 1 | . . . . . . . 1 Combat Hostiles 1 | . . . . . . . 1 Parts Melted 6 | . . . 1 . . . 5 Heat Transferred 2890 | 50 . 148 925 . . . 1767 Parts Sabotaged . | . . . . . . . . Parts Stolen . | . . . . . . . . Parts Stripped . | . . . . . . . . Power Chain Reactions 4 | 1 . . . . . . 3 Missiles Intercepted . | . . . . . . . . Latent Energy Used 200 | . . . . . 200 . . LE Corruption 3 | . . . . . 3 . . Alert | -11 -10 -10 -9 -9 -9 -8 -8 ------- Run | Scr Mat Min Mat Min Exi Min Mat Peak Influence 698 | 20 76 272 261 51 . 60 698 Initial 51 | . 13 29 3 51 . . 3 Average 117 | 8 40 130 60 18 . 10 239 Maximum Alert Level 2 | . . 1 1 . . . 2 Low Security (%) 82 | 100 100 81 95 100 . 100 58 Level 1 6 | . . 18 4 . . . 7 Level 2 11 | . . . . . . . 34 Level 3 . | . . . . . . . . Level 4 . | . . . . . . . . Level 5 . | . . . . . . . . High Security . | . . . . . . . . Max Security . | . . . . . . . . Squads Dispatched 11 | . 2 . 1 . . . 8 Investigation 6 | . . . 1 . . . 5 Extermination . | . . . . . . . . Reinforcement 4 | . 2 . . . . . 2 Assault 1 | . . . . . . . 1 Garrison . | . . . . . . . . Intercept . | . . . . . . . . Searches Triggered . | . . . . . . . . Construction Impeded 1 | . . . . . . . 1 Haulers Reinforced . | . . . . . . . . Active Scanning Responses . | . . . . . . . . Cargo Convoy Interrupts . | . . . . . . . . Stealth | -11 -10 -10 -9 -9 -9 -8 -8 --------- Run | Scr Mat Min Mat Min Exi Min Mat Distress Signals 4 | . . 1 1 . . . 2 Communications Jammed 11 | . . . . . . . 11 Distress Signals . | . . . . . . . . Times Spotted 119 | . 7 11 24 . 18 5 54 Peak Tracking Total 10 | . 2 3 6 . 10 3 5 Tactical Retreats 6 | . . 1 3 . 2 . . Traps | -11 -10 -10 -9 -9 -9 -8 -8 ------- Run | Scr Mat Min Mat Min Exi Min Mat Traps Triggered 6 | . . . 2 . . . 4 Indirectly . | . . . . . . . . Trap Hack Attempts . | . . . . . . . . Triggered . | . . . . . . . . Disarmed . | . . . . . . . . Reprogrammed . | . . . . . . . . Reused . | . . . . . . . . Traps Extracted . | . . . . . . . . Installed . | . . . . . . . . Triggered . | . . . . . . . . Exploded 3 | . . . . . 3 . . Machines | -11 -10 -10 -9 -9 -9 -8 -8 ---------- Run | Scr Mat Min Mat Min Exi Min Mat Machines Disabled 10 | . . 2 . . 5 1 2 Max in Single Turn 2 | . . 1 . . 2 1 1 Machines Sabotaged . | . . . . . . . . Garrisons Compromised . | . . . . . . . . Overloaded Fab Kills . | . . . . . . . . Hacking | -11 -10 -10 -9 -9 -9 -8 -8 --------- Run | Scr Mat Min Mat Min Exi Min Mat Machines Accessed 20 | . 1 1 3 . 2 . 13 Terminals 14 | . 1 1 3 . . . 9 Fabricators . | . . . . . . . . Repair Stations 1 | . . . . . . . 1 Recycling Units 1 | . . . . . . . 1 Scanalyzers 2 | . . . . . . . 2 Garrison Access . | . . . . . . . . Total Hacks 83 | . 6 3 8 . 2 . 64 Successful 60 | . 4 1 6 . 2 . 47 Failed 23 | . 2 2 2 . . . 17 Catastrophic 1 | . . 1 . . . . . Database Lockouts . | . . . . . . . . Manual 43 | . 4 3 4 . 1 . 31 Terminals 56 | . 6 3 8 . . . 39 Fabricators . | . . . . . . . . Repair Stations 4 | . . . . . . . 4 Recycling Units 2 | . . . . . . . 2 Scanalyzers 19 | . . . . . . . 19 Garrison Access . | . . . . . . . . Terminal Hacks 30 | . 4 1 4 . 2 . 19 Record 1 | . . . . . 1 . . Part Schematic 2 | . . 1 . . . . 1 Robot Analysis 5 | . 2 . . . . . 3 Prototype ID Bank 3 | . . . . . . . 3 Level Access Points 1 | . . . . . . . 1 Branch Access Points 2 | . 1 . . . . . 1 Terminal Index 1 | . . . . . . . 1 Repair Station Index 1 | . . . . . . . 1 Recycling Unit Index 1 | . . . . . . . 1 Scanalyzer Index 1 | . . . . . . . 1 Garrison Index 1 | . . . . . . . 1 Alert Level 1 | . . . 1 . . . . Unreport Threat 3 | . . . 2 . . . 1 Locate Traps 3 | . 1 . . . . . 2 Recall Investigation 1 | . . . . . . . 1 Recall Reinforcements 1 | . . . . . . . 1 Hauler Manifests 1 | . . . 1 . . . . EX-Prototype ID Bank 1 | . . . . . 1 . . Fabricator Hacks . | . . . . . . . . Repair Station Hacks 4 | . . . . . . . 4 Scan Component 2 | . . . . . . . 2 Repair 2 | . . . . . . . 2 Recycling Unit Hacks 2 | . . . . . . . 2 Report Inventory 1 | . . . . . . . 1 Retrieve Components 1 | . . . . . . . 1 Scanalyzer 16 | . . . . . . . 16 Insert Component 4 | . . . . . . . 4 Analyze 12 | . . . . . . . 12 Garrison Access Hacks . | . . . . . . . . Unauthorized Hacks 8 | . . . 2 . . . 6 Terminals 8 | . . . 2 . . . 6 Assimilate 2 | . . . . . . . 2 Botnet 4 | . . . 1 . . . 3 Operators 2 | . . . 1 . . . 1 Fabricators . | . . . . . . . . Repair Stations . | . . . . . . . . Recycling Units . | . . . . . . . . Scanalyzers . | . . . . . . . . Garrison Access . | . . . . . . . . Data Cores Recovered . | . . . . . . . . Used . | . . . . . . . . Hacking Detections 17 | . 1 1 3 . . . 12 Full Trace Events 3 | . . . . . . . 3 Feedback Events . | . . . . . . . . Feedback Blocked . | . . . . . . . . Robot Schematics Acquired . | . . . . . . . . Robots Built . | . . . . . . . . Authchips . | . . . . . . . . Time . | . . . . . . . . Total Robot Build Rating . | . . . . . . . . Part Schematics Acquired 5 | . . 1 . . . . 4 Parts Built . | . . . . . . . . Authchips . | . . . . . . . . Time . | . . . . . . . . Total Part Build Rating . | . . . . . . . . Parts Repaired 2 | . . . . . . . 2 Time 139 | . . . . . . . 139 Parts Recycled . | . . . . . . . . Recycled Matter . | . . . . . . . . Retrieved Matter . | . . . . . . . . Retrieved Components 8 | . . . . . . . 8 Parts Scanalyzed 3 | . . . . . . . 3 Part Schematics Acquired 3 | . . . . . . . 3 Parts Damaged 2 | . . . . . . . 2 Bothacking | -11 -10 -10 -9 -9 -9 -8 -8 ------------ Run | Scr Mat Min Mat Min Exi Min Mat Used RIF Installer . | . . . . . . . . Robots Hacked . | . . . . . . . . Non-combat . | . . . . . . . . Combat . | . . . . . . . . Robot Hacks Applied . | . . . . . . . . Relay Couplers Released . | . . . . . . . . Fabnet Peak Effective % . | . . . . . . . . Robots Rewired . | . . . . . . . . Allies Hacked . | . . . . . . . . Hacks Repelled . | . . . . . . . . Allies | -11 -10 -10 -9 -9 -9 -8 -8 -------- Run | Scr Mat Min Mat Min Exi Min Mat Total Allies 3 | . . 2 . . . . 1 Largest Group 2 | . . 2 1 . . . 1 Highest-Rated Group 45 | . . 45 31 . . . 10 Highest-Rated Ally 31 | . . 31 31 . . . 10 Total Orders 3 | . . . . . . . 3 STAY 2 | . . . . . . . 2 FOLLOW 1 | . . . . . . . 1 Ally Attacks 15 | . . 13 2 . . . . Total Damage 232 | . . 191 41 . . . . Kills 3 | . . 2 1 . . . . Allies Corrupted . | . . . . . . . . Allies Melted . | . . . . . . . . Intel | -11 -10 -10 -9 -9 -9 -8 -8 ------- Run | Scr Mat Min Mat Min Exi Min Mat Robot Analysis Total 5 | . 2 . . . . . 3 Derelict Logs Recovered 4 | . . 2 . 2 . . . Drone Launches . | . . . . . . . . Drone Recoveries . | . . . . . . . . Exploration | -11 -10 -10 -9 -9 -9 -8 -8 ------------- Run | Scr Mat Min Mat Min Exi Min Mat Turns Passed 11728 | 153 356 1218 1566 1107 4077 746 2505 Spaces Moved 5065 | 80 230 664 543 438 1626 241 1243 Core 4 | 1 . . . . . . 3 Treads 3822 | . 78 664 543 438 1626 241 232 Legs . | . . . . . . . . Wheels 1194 | 79 152 . . . . . 963 Hover 45 | . . . . . . . 45 Flight . | . . . . . . . . Fastest Speed 50 | 50 90 160 160 170 170 170 93 Average Speed 194 | 89 114 160 213 249 237 249 140 Slowest Speed 1400 | 90 160 160 250 250 250 250 1400 Overloaded Moves . | . . . . . . . . Propulsion Burnouts . | . . . . . . . . Robots Hopped . | . . . . . . . . Cave-ins Triggered . | . . . . . . . . Exploration Rate (%) 63 | 5 50 99 42 98 90 35 86 Regions Visited 7 Branch Regions 4 Pre-discovered Areas 1 | . . . . . 1 . . Known Exits Taken 1 | . 1 . . . . . . Unknown Exits Taken 6 | 1 . 1 1 1 1 1 . Scrap Searched 2 | . . 1 . 1 . . . Spaces Dug 3 | . 3 . . . . . . Terrain Destroyed 163 | 4 3 60 . . 34 . 62 Melee . | . . . . . . . . Projectile 9 | . 3 . . . 2 . 4 AOE 154 | 4 . 60 . . 32 . 58 Terrain Rammed . | . . . . . . . . Walls Destroyed . | . . . . . . . . Machines Disabled . | . . . . . . . . Actions | -11 -10 -10 -9 -9 -9 -8 -8 --------- Run | Scr Mat Min Mat Min Exi Min Mat Total 6323 | 115 297 803 866 447 1762 309 1724 Wait 616 | . 32 117 193 . 25 1 248 Move 5058 | 79 229 663 542 437 1625 240 1243 Hop . | . . . . . . . . Pick Up 74 | 5 12 3 21 . 21 2 10 Fast Attach 56 | 7 . . 10 2 5 3 29 Attach 27 | . 2 . 3 . 7 5 10 Detach 7 | . 1 . 1 . 1 . 4 Swap 54 | 1 4 6 17 2 4 . 20 Drop 91 | . 4 2 30 3 25 1 26 Fire 292 | 23 13 12 47 . 49 18 130 Melee 43 | . . . 2 . . 39 2 Ram 1 | . . . . . . . 1 Kick . | . . . . . . . . Crush 4 | . . . . 3 . . 1 Escape Stasis . | . . . . . . . . Rewire . | . . . . . . . . Trap . | . . . . . . . . Miscellaneous . | . . . . . . . . Route ------- -11/Scrapyard -10/Materials -10/Mines (discovered 2 exits: *Mat x2) -9/Materials -9/Mines (discovered 4 exits: *Mat x2 / *Exi / [*Zio]) -9/Exiles (discovered 2 exits: [*Min x2]) -8/Mines -8/Materials (discovered 3 exits: *Fac x3) History --------- Turn | Location | Event 23 | -11/Scrapyard | Discovered new exit (range 14) 154 | -11/Scrapyard | Entered Materials 304 | -10/Materials | Build established: Mutant 438 | -10/Materials | Identified exit to Mines 510 | -10/Materials | Entered Mines 589 | -10/Mines | Received a Rocket Launcher from a helpful Derelict 735 | -10/Mines | Discovered new exit (range 5) 786 | -10/Mines | Assembled infested the area 983 | -10/Mines | Core integrity fell below 50% 1172 | -10/Mines | Discovered new exit (range 8) 1458 | -10/Mines | Found a damaged Exp. Sensor Array with a note attached 1462 | -10/Mines | Found Prototype Device 1463 | -10/Mines | Identified Exp. Sensor Array 1728 | -10/Mines | Entered Materials 1728 | -9/Materials | Accompanied by 1 ally 1728 | -9/Materials | Evolved 2 slots: Utility x1, Weapon x1 1733 | -9/Materials | Led the pair of lost Derelicts to an unsafe place 2015 | -9/Materials | Build established: Tank 3253 | -9/Materials | Discovered new exit (range 8) 3294 | -9/Materials | Entered Mines 3333 | -9/Mines | Deemed a non-threat by the Exiles lab entrance 3491 | -9/Mines | Discovered new exit (range 6) 3636 | -9/Mines | Learned location of 1 exit from Materials 3687 | -9/Mines | A Derelict revealed a hidden shortcut to a safe place 4201 | -9/Mines | Discovered new exit (range 5) 4391 | -9/Mines | Discovered new exit (range 5) 4401 | -9/Mines | Entered Exiles 4439 | -9/Exiles | Discovered new exit (range 15) 4469 | -9/Exiles | Met 8R-AWN 4504 | -9/Exiles | Met EX-HEX 4631 | -9/Exiles | Met EX-DEC 4676 | -9/Exiles | Learned location of Zion (-7) 4856 | -9/Exiles | Met EX-BIN 4891 | -9/Exiles | Aligned with FarCom system 4894 | -9/Exiles | Given EX-Vault access code 4954 | -9/Exiles | Opened EX-Vault 4967 | -9/Exiles | Found Latent Energy Streamer 5020 | -9/Exiles | Warned to stay clear of 0b10 Research branches 5185 | -9/Exiles | Discovered new exit (range 11) 5498 | -9/Exiles | Build established: Mutant 5666 | -9/Exiles | Found AWS/Gauss 5672 | -9/Exiles | Found Deploy-a-Sentry 5676 | -9/Exiles | Found Deploy-a-Sentry 5679 | -9/Exiles | Found Deploy-a-Sentry 5874 | -9/Exiles | Attacked by the Exiles 5996 | -9/Exiles | Build established: Tank 5999 | -9/Exiles | Destroyed 8R-AWN 6307 | -9/Exiles | Destroyed EX-BIN 6655 | -9/Exiles | Destroyed EX-DEC 6779 | -9/Exiles | Destroyed EX-HEX 6914 | -9/Exiles | Found Prototype Processor 7175 | -9/Exiles | Found Prototype Processor 8478 | -9/Exiles | Entered Mines 8521 | -8/Mines | ME-RLN came to Exiles' defense 8527 | -8/Mines | ME-RLN assimilated allied S-10 Pest 8583 | -8/Mines | Core integrity fell below 50% 8592 | -8/Mines | System corruption reached 10% 8606 | -8/Mines | ME-RLN assimilated allied T-07 Excavator 8625 | -8/Mines | Lost 6 parts (1p1n2u2w) 8637 | -8/Mines | Destroyed ME-RLN 8821 | -8/Mines | Build established: Mutant 9059 | -8/Mines | Discovered new exit (range 8) 9224 | -8/Mines | Entered Materials 9224 | -8/Materials | Evolved 2 slots: Propulsion x1, Utility x1 9225 | -8/Materials | Identified exit to Factory 9682 | -8/Materials | Discovered exit to Factory (range 16) 9779 | -8/Materials | Build established: Tank 10179 | -8/Materials | Repaired Gauss Rifle 11061 | -8/Materials | Lost 3 parts (1n2w) 11349 | -8/Materials | Build established: Hacker-Gunner 11440 | -8/Materials | Identified Exp. Targeting Computer 11624 | -8/Materials | First assault squad dispatched 11693 | -8/Materials | Core integrity fell below 50% 11708 | -8/Materials | Repaired Broken Cmb. Antigrav System? 11712 | -8/Materials | Core integrity fell below 20% 11729 | -8/Materials | Destroyed by G-47 Trooper with Particle Gun Last Messages --------------- 11710_ K-01 Serf collects debris. 11713_ The unstable cave ceiling collapses. 11714_ K-01 Serf collects debris. 11714_ U-05 Engineer lays Concrete. 11715_ The unstable cave ceiling collapses. 11715_ G-50 Soldier destroyed. 11715_ U-05 Engineer lays Concrete. 11716_ U-05 Engineer builds a Wall. 11719_ K-01 Serf collects debris. 11721_ The unstable cave ceiling collapses. 11721_ U-05 Engineer lays Concrete. 11721_ Acquired Com. Wheel. 11722_ K-01 Serf collects debris. 11722_ U-05 Engineer lays Concrete. 11723_ Acquired 59 matter. 11723_ U-05 Engineer builds a Wall. 11725_ The unstable cave ceiling collapses. 11726_ K-01 Serf collects debris. 11727_ Mak. Axe destroyed. 11728_ U-05 Engineer lays Concrete. Map ----- +----------------------------------------------------+ | """????????????????????????????????????? | | """????????????????????????????????????? | | """ ""?????????????????????????????????? | | """ """????????????????????????????????? | | #??????????????????????????????? | | """ """????????????????????????????????? | | """ "??????????????????????????????????? | | """ ???????????????????????????????????? | | """????????????????????????????????????? | | ????????????????????????????????????? | | #+#########????????????????????????????? | | #????????????????????????????? | | #????????????????????????????? | | "" #??????????####??????????????? | | "" !!! #??????????# # ##????????????? | | "" !! #?????????? # ##???????????? | | "" !! #??######### #???????????? | | #??# < #???????????? | | #### """ T #???????????? | | "" """ + """ # #???????????? | | "" ^""" #### """ #???????????? | | "" """ ##??# % ##??????????? | | "" """ #???# """ = # ##?????????? | | #???# """ # %g #?????????? | | #???# """ ##?????????? | | ##### #???# #%!@! #?????????? | | #???# #???####### #%u%#= #?????????? | | ########+###????????# k !###########??? | | #????????# !# #??? | | """ """ #????????###= ## #??? | | S """ "" ##?######## # """ #??? | | "" "" """ #?# ] # """"" #??? | | "" !%!##?# [ ]==! + """"" #??? | | ! =[#??# ]! * = # """"" #??? | | /###########??# #### %% # """ #??? | | # ???# #??## =*## #??? | | # """ ""???# #???#!% ## ! #??? | | + """ ""???# #???# ###########??? | | # """ ""???# #???# ##???????????? | | # ???# #??## ##???????????? | | #?########??# #??## #????????????? | | #????######## #??## #????????????? | | #????#] = # #???### #????????????? | | #####??# ! # #?????# #????????????? | | #??# = + #?????# #????????????? | | "" #??# # #?????# #????????????? | | "" +??# # ####### #########????? | | "" ^#??# # # # ## """ #????? | | #??######## # """ # ## """ #????? | | "" #?????????#!]]# "R # ## """ #????? | +----------------------------------------------------+ Best States ------------- Heat Dissipation 50 Energy Generation 23 Energy Capacity 380 Matter Stores 300 Matter Capacity 300 Sight Range 16 Robot Scan Range 20 Terrain Scan Density 10 Jamming Range 16 Cloak Strength 3 Corruption Containment 12 Armor Coverage 450 Weapon Cycling 25 Evasion (%) 42 Targeting Accuracy 8 Recoil Reduction 3 Offensive Hacking 30 Defensive Hacking 10 Item Schematics ----------------- Huge Storage Unit | -10/Mines | Hacked Cmb. Antigrav System | -8/Materials | Scanalyzed Hcp. Storage Unit | -8/Materials | Hacked Cld. Antimatter Reactor | -8/Materials | Scanalyzed Exp. Targeting Computer | -8/Materials | Scanalyzed Robot Schematics ------------------ None Fabricated ------------ Nothing Alien Tech Used ----------------- None Achievements -------------- None Challenges ------------ None Game ------ Seed IonicRiotMicrothruster Manual? 0 Play Time 01:28:43 Cumulative 517.9 hours Start 2022.04.18 @ 22:31:05 End 2022.04.19 @ 20:52:44 Sessions 3 Manual Loads 0 Difficulty Rogue Special Mode None Game No. 162 Rogue 158 Adventurer 4 Explorer 0 Win Type - Total 13 Types 6/2/3/0/0/0/1/1/0 Lore% 82 Gallery% 86 Achievement% 73 Wizard Run 0 Options --------- ASCII 1 Keyboard 0 Movement Arrows Keybinds 0 Fullscreen 1 Font 18/SmallcapsGlow Map View 76x50 Tactical HUD 1 Map Filters NONE Filters NONE Steam 1 RUN: 2d788401-b0ca-4883-8c2c-c4a582d34c1a